[Event "Titled Tuesday Blitz May 16 Late 2023"]
[White "Donchenko, Alexander"]
[Black "Adan Bermudez, Sergio"]
[WhiteFideId "24603295"]
[BlackFideId "2292726"]
[WhiteElo "2554"]
[BlackElo "2292"]
[Result "1-0"]
[Round "02"]
[TimeControl "180+2"]
[Date "2023.05.16"]
[WhiteClock "0:00:29"]
[BlackClock "0:00:04"]

1. e4 {[%clk 0:03:00]}  c5 {[%clk 0:02:59]} 2. Nf3 {[%clk 0:03:01]}  Nc6 {[%clk 0:02:51]} 3. Bb5 {[%clk 0:03:00]}  e5 {[%clk 0:02:50]} 4. O-O {[%clk 0:02:59]}  Bd6 {[%clk 0:02:50]} 5. c3 {[%clk 0:02:58]}  a6 {[%clk 0:02:50]} 6. Ba4 {[%clk 0:02:57]}  b5 {[%clk 0:02:49]} 7. Bc2 {[%clk 0:02:57]}  Nf6 {[%clk 0:02:47]} 8. d4 {[%clk 0:02:56]}  cxd4 {[%clk 0:02:45]} 9. cxd4 {[%clk 0:02:57]}  exd4 {[%clk 0:02:41]} 10. e5 {[%clk 0:02:53]}  Nxe5 {[%clk 0:02:36]} 11. Re1 {[%clk 0:02:52]}  Qc7 {[%clk 0:02:20]} 12. Bf4 {[%clk 0:02:40]}  Ng4 {[%clk 0:01:41]} 13. Nxe5 {[%clk 0:02:34]}  Nxe5 {[%clk 0:01:36]} 14. Bxe5 {[%clk 0:02:27]}  Bxe5 {[%clk 0:01:35]} 15. f4 {[%clk 0:02:28]}  d6 {[%clk 0:01:33]} 16. fxe5 {[%clk 0:02:26]}  dxe5 {[%clk 0:01:33]} 17. Be4 {[%clk 0:02:19]}  Rb8 {[%clk 0:01:28]} 18. Qh5 {[%clk 0:02:10]}  g6 {[%clk 0:01:25]} 19. Bc6+ {[%clk 0:02:04]}  Kf8 {[%clk 0:01:08]} 20. Qxe5 {[%clk 0:02:02]}  Qxe5 {[%clk 0:00:59]} 21. Rxe5 {[%clk 0:02:03]}  Rb6 {[%clk 0:00:57]} 22. Bf3 {[%clk 0:01:56]}  Kg7 {[%clk 0:00:55]} 23. Rd5 {[%clk 0:01:54]}  Bb7 {[%clk 0:00:44]} 24. Rxd4 {[%clk 0:01:54]}  Bxf3 {[%clk 0:00:45]} 25. gxf3 {[%clk 0:01:54]}  Re8 {[%clk 0:00:45]} 26. Nc3 {[%clk 0:01:54]}  b4 {[%clk 0:00:43]} 27. Ne4 {[%clk 0:01:54]}  f5 {[%clk 0:00:40]} 28. Rd7+ {[%clk 0:01:53]}  Kh6 {[%clk 0:00:39]} 29. Ng3 {[%clk 0:01:46]}  Rc6 {[%clk 0:00:36]} 30. Rad1 {[%clk 0:01:45]}  Rc2 {[%clk 0:00:33]} 31. R7d2 {[%clk 0:01:43]}  Rec8 {[%clk 0:00:29]} 32. Kf2 {[%clk 0:01:42]}  Kg5 {[%clk 0:00:29]} 33. Ne2 {[%clk 0:01:41]}  a5 {[%clk 0:00:22]} 34. b3 {[%clk 0:01:38]}  h5 {[%clk 0:00:20]} 35. Nd4 {[%clk 0:01:38]}  Rxd2+ {[%clk 0:00:19]} 36. Rxd2 {[%clk 0:01:39]}  Rc1 {[%clk 0:00:17]} 37. Rc2 {[%clk 0:01:35]}  Ra1 {[%clk 0:00:16]} 38. Nc6 {[%clk 0:01:35]}  h4 {[%clk 0:00:14]} 39. Nxa5 {[%clk 0:01:34]}  h3 {[%clk 0:00:12]} 40. Nc6 {[%clk 0:01:33]}  Kh4 {[%clk 0:00:11]} 41. Rc4+ {[%clk 0:01:33]}  Kh5 {[%clk 0:00:11]} 42. Nxb4 {[%clk 0:01:33]}  g5 {[%clk 0:00:11]} 43. Kg3 {[%clk 0:01:32]}  Rg1+ {[%clk 0:00:11]} 44. Kf2 {[%clk 0:01:27]}  Rg2+ {[%clk 0:00:11]} 45. Kf1 {[%clk 0:01:28]}  Rxh2 {[%clk 0:00:12]} 46. Kg1 {[%clk 0:01:26]}  Rg2+ {[%clk 0:00:12]} 47. Kh1 {[%clk 0:01:26]}  g4 {[%clk 0:00:13]} 48. fxg4+ {[%clk 0:01:25]}  fxg4 {[%clk 0:00:13]} 49. a4 {[%clk 0:01:20]}  g3 {[%clk 0:00:12]} 50. Nd3 {[%clk 0:00:59]}  Rh2+ {[%clk 0:00:12]} 51. Kg1 {[%clk 0:00:59]}  Rg2+ {[%clk 0:00:12]} 52. Kf1 {[%clk 0:00:59]}  Rd2 {[%clk 0:00:12]} 53. Nf4+ {[%clk 0:00:59]}  Kg4 {[%clk 0:00:13]} 54. Ne2+ {[%clk 0:00:55]}  Kf3 {[%clk 0:00:11]} 55. Rc3+ {[%clk 0:00:55]}  Kg4 {[%clk 0:00:08]} 56. Rxg3+ {[%clk 0:00:52]}  Kh4 {[%clk 0:00:08]} 57. Re3 {[%clk 0:00:52]}  Rd1+ {[%clk 0:00:05]} 58. Kf2 {[%clk 0:00:52]}  h2 {[%clk 0:00:06]} 59. Ng3 {[%clk 0:00:45]}  Rg1 {[%clk 0:00:05]} 60. Nh1 {[%clk 0:00:32]}  Rxh1 {[%clk 0:00:05]} 61. Kg2 {[%clk 0:00:33]}  Rb1 {[%clk 0:00:03]} 62. Kxh2 {[%clk 0:00:31]}  Rb2+ {[%clk 0:00:03]} 63. Kg1 {[%clk 0:00:31]}  Kg4 {[%clk 0:00:04]} 64. Kf1 {[%clk 0:00:30]}  Kf4 {[%clk 0:00:05]} 65. Rh3 {[%clk 0:00:31]}  Ke4 {[%clk 0:00:05]} 66. Ke1 {[%clk 0:00:31]}  Kd4 {[%clk 0:00:05]} 67. Kd1 {[%clk 0:00:31]}  Kc5 {[%clk 0:00:05]} 68. Kc1 {[%clk 0:00:31]}  Rg2 {[%clk 0:00:06]} 69. Rh4 {[%clk 0:00:31]}  Kb6 {[%clk 0:00:05]} 70. Rc4 {[%clk 0:00:30]}  Rf2 {[%clk 0:00:05]} 71. Rc2 {[%clk 0:00:30]}  Rf3 {[%clk 0:00:05]} 72. Kb2 {[%clk 0:00:30]}  Ka5 {[%clk 0:00:06]} 73. Ka3 {[%clk 0:00:29]}  Rg3 {[%clk 0:00:04]} 74. Rc5+ {[%clk 0:00:29]} 1-0


[Site "https://www.chess.com"]

[Event "Titled Tuesday Blitz May 16 Late 2023"]
[White "Adla, Diego"]
[Black "Xiong, Jeffery"]
[WhiteFideId "100072"]
[BlackFideId "2047640"]
[WhiteElo "2377"]
[BlackElo "2726"]
[Result "0-1"]
[Round "02"]
[TimeControl "180+2"]
[Date "2023.05.16"]
[WhiteClock "0:00:30"]
[BlackClock "0:01:07"]

1. c4 {[%clk 0:03:00]}  e6 {[%clk 0:02:59]} 2. g3 {[%clk 0:03:00]}  d5 {[%clk 0:02:58]} 3. Bg2 {[%clk 0:03:00]}  d4 {[%clk 0:02:59]} 4. b4 {[%clk 0:02:56]}  a5 {[%clk 0:02:49]} 5. b5 {[%clk 0:02:51]}  Ne7 {[%clk 0:02:44]} 6. Nf3 {[%clk 0:02:46]}  Nf5 {[%clk 0:02:44]} 7. O-O {[%clk 0:02:44]}  Nd7 {[%clk 0:02:44]} 8. e4 {[%clk 0:02:40]}  dxe3 {[%clk 0:02:44]} 9. fxe3 {[%clk 0:02:36]}  Be7 {[%clk 0:02:45]} 10. d4 {[%clk 0:02:35]}  O-O {[%clk 0:02:44]} 11. Nc3 {[%clk 0:02:24]}  c5 {[%clk 0:02:38]} 12. d5 {[%clk 0:02:13]}  Nb6 {[%clk 0:02:37]} 13. Qd3 {[%clk 0:02:13]}  exd5 {[%clk 0:02:36]} 14. cxd5 {[%clk 0:02:11]}  c4 {[%clk 0:02:34]} 15. Qe2 {[%clk 0:01:40]}  Nxd5 {[%clk 0:02:06]} 16. Nxd5 {[%clk 0:01:41]}  Qxd5 {[%clk 0:02:06]} 17. Kh1 {[%clk 0:01:41]}  Qxb5 {[%clk 0:02:05]} 18. e4 {[%clk 0:01:33]}  Nd6 {[%clk 0:02:05]} 19. Nd4 {[%clk 0:01:31]}  Qa6 {[%clk 0:01:44]} 20. Bb2 {[%clk 0:01:30]}  c3 {[%clk 0:01:32]} 21. Qxa6 {[%clk 0:01:28]}  Rxa6 {[%clk 0:01:33]} 22. Bxc3 {[%clk 0:01:29]}  Bf6 {[%clk 0:01:30]} 23. Rad1 {[%clk 0:01:23]}  b5 {[%clk 0:01:27]} 24. e5 {[%clk 0:01:18]}  Bxe5 {[%clk 0:01:26]} 25. Nxb5 {[%clk 0:01:18]}  Bxc3 {[%clk 0:01:22]} 26. Nxc3 {[%clk 0:01:19]}  Be6 {[%clk 0:01:23]} 27. a4 {[%clk 0:01:15]}  Nc4 {[%clk 0:01:17]} 28. Rfe1 {[%clk 0:01:12]}  Rd6 {[%clk 0:01:11]} 29. Rxd6 {[%clk 0:01:10]}  Nxd6 {[%clk 0:01:12]} 30. Re5 {[%clk 0:01:09]}  Nc4 {[%clk 0:01:12]} 31. Rc5 {[%clk 0:01:08]}  Rb8 {[%clk 0:01:12]} 32. h4 {[%clk 0:01:08]}  g6 {[%clk 0:01:11]} 33. Bc6 {[%clk 0:01:03]}  Rb3 {[%clk 0:01:10]} 34. Ne4 {[%clk 0:01:03]}  Kg7 {[%clk 0:01:10]} 35. Bb5 {[%clk 0:01:02]}  Ne3 {[%clk 0:01:07]} 36. Ng5 {[%clk 0:01:01]}  Bd5+ {[%clk 0:01:07]} 37. Kg1 {[%clk 0:00:30]}  Rb2 {[%clk 0:01:07]} 0-1


[Site "https://www.chess.com"]

[Event "Titled Tuesday Blitz May 16 Late 2023"]
[White "Boor, Carl"]
[Black "Iturrizaga Bonelli, Eduardo"]
[WhiteFideId "2017008"]
[BlackFideId "3901211"]
[WhiteElo "2330"]
[BlackElo "2637"]
[Result "0-1"]
[Round "02"]
[TimeControl "180+2"]
[Date "2023.05.16"]
[WhiteClock "0:01:49"]
[BlackClock "0:02:33"]

1. d4 {[%clk 0:03:00]}  Nf6 {[%clk 0:02:59]} 2. c4 {[%clk 0:03:00]}  e6 {[%clk 0:03:00]} 3. Nc3 {[%clk 0:03:00]}  Bb4 {[%clk 0:03:00]} 4. Bd2 {[%clk 0:03:00]}  O-O {[%clk 0:02:59]} 5. e3 {[%clk 0:02:59]}  b6 {[%clk 0:02:59]} 6. Nf3 {[%clk 0:02:59]}  Bb7 {[%clk 0:03:00]} 7. Bd3 {[%clk 0:02:59]}  c5 {[%clk 0:02:58]} 8. a3 {[%clk 0:02:58]}  Bxc3 {[%clk 0:02:54]} 9. Bxc3 {[%clk 0:02:57]}  Ne4 {[%clk 0:02:52]} 10. Rc1 {[%clk 0:02:56]}  d6 {[%clk 0:02:48]} 11. O-O {[%clk 0:02:55]}  Nd7 {[%clk 0:02:47]} 12. Qe2 {[%clk 0:02:52]}  f5 {[%clk 0:02:46]} 13. Ne1 {[%clk 0:02:39]}  Qh4 {[%clk 0:02:42]} 14. f3 {[%clk 0:02:18]}  Nef6 {[%clk 0:02:41]} 15. Qf2 {[%clk 0:02:11]}  Qh6 {[%clk 0:02:40]} 16. Nc2 {[%clk 0:02:09]}  Ne4 {[%clk 0:02:35]} 17. Ne1 {[%clk 0:01:49]}  Nxf2 {[%clk 0:02:33]} 0-1


[Site "https://www.chess.com"]

[Event "Titled Tuesday Blitz May 16 Late 2023"]
[White "Sattarov, Bobir"]
[Black "Saveliev, Alexei"]
[WhiteFideId "14203081"]
[BlackFideId "24128546"]
[WhiteElo "2351"]
[BlackElo "2271"]
[Result "0-1"]
[Round "02"]
[TimeControl "180+2"]
[Date "2023.05.16"]
[WhiteClock "0:00:01"]
[BlackClock "0:00:04"]

1. e4 {[%clk 0:03:00]}  g6 {[%clk 0:02:59]} 2. d4 {[%clk 0:03:00]}  Bg7 {[%clk 0:03:00]} 3. Nf3 {[%clk 0:02:59]}  d6 {[%clk 0:03:00]} 4. Nbd2 {[%clk 0:02:58]}  Nc6 {[%clk 0:03:00]} 5. c3 {[%clk 0:02:56]}  Nf6 {[%clk 0:02:59]} 6. Bd3 {[%clk 0:02:54]}  O-O {[%clk 0:02:56]} 7. O-O {[%clk 0:02:54]}  Nd7 {[%clk 0:02:55]} 8. Re1 {[%clk 0:02:45]}  e5 {[%clk 0:02:55]} 9. Nb3 {[%clk 0:02:41]}  a5 {[%clk 0:02:47]} 10. a4 {[%clk 0:02:41]}  b6 {[%clk 0:02:47]} 11. h3 {[%clk 0:02:37]}  h6 {[%clk 0:02:43]} 12. Be3 {[%clk 0:02:35]}  Kh7 {[%clk 0:02:42]} 13. Qd2 {[%clk 0:02:34]}  Bb7 {[%clk 0:02:41]} 14. Rad1 {[%clk 0:02:30]}  Qe7 {[%clk 0:02:41]} 15. Bb1 {[%clk 0:02:29]}  Rae8 {[%clk 0:02:39]} 16. Nh2 {[%clk 0:02:17]}  Qd8 {[%clk 0:02:28]} 17. f4 {[%clk 0:02:09]}  exd4 {[%clk 0:02:18]} 18. cxd4 {[%clk 0:02:10]}  Nb4 {[%clk 0:02:16]} 19. d5 {[%clk 0:01:52]}  Nc5 {[%clk 0:02:11]} 20. Nxc5 {[%clk 0:01:46]}  bxc5 {[%clk 0:02:08]} 21. Nf3 {[%clk 0:01:43]}  c6 {[%clk 0:01:48]} 22. dxc6 {[%clk 0:01:13]}  Bxc6 {[%clk 0:01:49]} 23. Bf2 {[%clk 0:01:09]}  Bxa4 {[%clk 0:01:41]} 24. Rc1 {[%clk 0:01:08]}  Qb8 {[%clk 0:01:28]} 25. e5 {[%clk 0:01:01]}  dxe5 {[%clk 0:01:27]} 26. fxe5 {[%clk 0:00:57]}  Bxe5 {[%clk 0:00:54]} 27. Bxc5 {[%clk 0:00:49]}  Bf4 {[%clk 0:00:53]} 28. Qd4 {[%clk 0:00:33]}  Bxc1 {[%clk 0:00:32]} 29. Rxc1 {[%clk 0:00:33]}  Rd8 {[%clk 0:00:26]} 30. Qh4 {[%clk 0:00:25]}  Rfe8 {[%clk 0:00:16]} 31. Ng5+ {[%clk 0:00:20]}  Kg7 {[%clk 0:00:16]} 32. Bd4+ {[%clk 0:00:20]}  Rxd4 {[%clk 0:00:16]} 33. Qxd4+ {[%clk 0:00:21]}  Qe5 {[%clk 0:00:16]} 34. Qxe5+ {[%clk 0:00:18]}  Rxe5 {[%clk 0:00:17]} 35. Nf3 {[%clk 0:00:16]}  Re2 {[%clk 0:00:17]} 36. b3 {[%clk 0:00:12]}  Bxb3 {[%clk 0:00:15]} 37. Nd4 {[%clk 0:00:13]}  Rb2 {[%clk 0:00:14]} 38. Be4 {[%clk 0:00:12]}  Bd5 {[%clk 0:00:13]} 39. Bxd5 {[%clk 0:00:10]}  Nxd5 {[%clk 0:00:14]} 40. g3 {[%clk 0:00:07]}  a4 {[%clk 0:00:11]} 41. Rc5 {[%clk 0:00:05]}  a3 {[%clk 0:00:08]} 42. Rxd5 {[%clk 0:00:05]}  a2 {[%clk 0:00:08]} 43. Ra5 {[%clk 0:00:05]}  Rb1+ {[%clk 0:00:08]} 44. Kf2 {[%clk 0:00:05]}  a1=Q {[%clk 0:00:09]} 45. Rxa1 {[%clk 0:00:06]}  Rxa1 {[%clk 0:00:10]} 46. h4 {[%clk 0:00:06]}  Ra3 {[%clk 0:00:06]} 47. Nb5 {[%clk 0:00:04]}  Ra5 {[%clk 0:00:05]} 48. Nd6 {[%clk 0:00:05]}  f5 {[%clk 0:00:05]} 49. Nc4 {[%clk 0:00:05]}  Ra4 {[%clk 0:00:05]} 50. Ne3 {[%clk 0:00:05]}  Kf6 {[%clk 0:00:05]} 51. Nd5+ {[%clk 0:00:06]}  Ke5 {[%clk 0:00:05]} 52. Ne7 {[%clk 0:00:06]}  Ra6 {[%clk 0:00:05]} 53. Kf3 {[%clk 0:00:05]}  Re6 {[%clk 0:00:03]} 54. Ng8 {[%clk 0:00:05]}  g5 {[%clk 0:00:02]} 55. hxg5 {[%clk 0:00:05]}  hxg5 {[%clk 0:00:03]} 56. Ke3 {[%clk 0:00:05]}  g4 {[%clk 0:00:03]} 57. Kf2 {[%clk 0:00:05]}  Kd6 {[%clk 0:00:03]} 58. Kg2 {[%clk 0:00:01]}  Rg6 {[%clk 0:00:04]} 0-1


[Site "https://www.chess.com"]

[Event "Titled Tuesday Blitz May 16 Late 2023"]
[White "Ismagilov, Damir"]
[Black "Sviridov, Valery"]
[WhiteFideId "34199982"]
[BlackFideId "4120680"]
[WhiteElo "2143"]
[BlackElo "2457"]
[Result "0-1"]
[Round "02"]
[TimeControl "180+2"]
[Date "2023.05.16"]
[WhiteClock "0:01:54"]
[BlackClock "0:02:32"]

1. f4 {[%clk 0:03:00]}  d5 {[%clk 0:02:56]} 2. Nf3 {[%clk 0:03:00]}  Nf6 {[%clk 0:02:57]} 3. b3 {[%clk 0:03:00]}  Bf5 {[%clk 0:02:57]} 4. e3 {[%clk 0:03:00]}  e6 {[%clk 0:02:57]} 5. Bb2 {[%clk 0:03:00]}  h6 {[%clk 0:02:57]} 6. d3 {[%clk 0:02:59]}  Bh7 {[%clk 0:02:54]} 7. Nbd2 {[%clk 0:03:00]}  Bc5 {[%clk 0:02:51]} 8. d4 {[%clk 0:02:56]}  Bd6 {[%clk 0:02:50]} 9. Bd3 {[%clk 0:02:55]}  Bf5 {[%clk 0:02:47]} 10. O-O {[%clk 0:02:51]}  Nbd7 {[%clk 0:02:47]} 11. c4 {[%clk 0:02:49]}  Bxd3 {[%clk 0:02:46]} 12. Re1 {[%clk 0:02:43]}  c6 {[%clk 0:02:46]} 13. c5 {[%clk 0:02:43]}  Bc7 {[%clk 0:02:45]} 14. Ne5 {[%clk 0:02:43]}  Bxe5 {[%clk 0:02:45]} 15. fxe5 {[%clk 0:02:44]}  Ne4 {[%clk 0:02:45]} 16. Nf3 {[%clk 0:02:41]}  Ba6 {[%clk 0:02:45]} 17. Qc2 {[%clk 0:02:40]}  O-O {[%clk 0:02:45]} 18. a4 {[%clk 0:02:40]}  f5 {[%clk 0:02:45]} 19. g3 {[%clk 0:02:38]}  g5 {[%clk 0:02:45]} 20. Qg2 {[%clk 0:02:38]}  Qe8 {[%clk 0:02:45]} 21. h4 {[%clk 0:02:38]}  Qh5 {[%clk 0:02:44]} 22. hxg5 {[%clk 0:02:37]}  hxg5 {[%clk 0:02:44]} 23. Nh2 {[%clk 0:02:32]}  g4 {[%clk 0:02:42]} 24. Nf1 {[%clk 0:02:29]}  Rf7 {[%clk 0:02:42]} 25. Nd2 {[%clk 0:02:28]}  Nxd2 {[%clk 0:02:40]} 26. Qxd2 {[%clk 0:02:29]}  Rh7 {[%clk 0:02:41]} 27. Qg2 {[%clk 0:02:29]}  Kf7 {[%clk 0:02:39]} 28. Kf2 {[%clk 0:02:29]}  Rah8 {[%clk 0:02:40]} 29. Rg1 {[%clk 0:02:27]}  Qh2 {[%clk 0:02:39]} 30. Bc3 {[%clk 0:02:21]}  Qxg2+ {[%clk 0:02:38]} 31. Rxg2 {[%clk 0:02:22]}  Nf8 {[%clk 0:02:38]} 32. Ba5 {[%clk 0:02:21]}  Rh1 {[%clk 0:02:36]} 33. Rxh1 {[%clk 0:02:07]}  Rxh1 {[%clk 0:02:37]} 34. Rg1 {[%clk 0:02:07]}  Rh2+ {[%clk 0:02:36]} 35. Rg2 {[%clk 0:02:07]}  Rh3 {[%clk 0:02:36]} 36. Bd8 {[%clk 0:02:07]}  Nh7 {[%clk 0:02:36]} 37. Kg1 {[%clk 0:02:04]}  Kg6 {[%clk 0:02:35]} 38. Kf2 {[%clk 0:02:03]}  Ng5 {[%clk 0:02:34]} 39. Bxg5 {[%clk 0:02:03]}  Kxg5 {[%clk 0:02:35]} 40. b4 {[%clk 0:01:58]}  Bd3 {[%clk 0:02:35]} 41. Rg1 {[%clk 0:01:58]}  Be4 {[%clk 0:02:32]} 42. b5 {[%clk 0:01:53]}  Rh2+ {[%clk 0:02:32]} 43. Ke1 {[%clk 0:01:54]}  Ra2 {[%clk 0:02:33]} 44. Rh1 {[%clk 0:01:54]}  Bxh1 {[%clk 0:02:32]} 0-1


[Site "https://www.chess.com"]

[Event "Titled Tuesday Blitz May 16 Late 2023"]
[White "Bernabeu Lopez, Carlos Javier"]
[Black "Suyarov, Mukhammadzokhid"]
[WhiteFideId "2235366"]
[BlackFideId "14210495"]
[WhiteElo "2344"]
[BlackElo "2361"]
[Result "0-1"]
[Round "02"]
[TimeControl "180+2"]
[Date "2023.05.16"]
[WhiteClock "0:01:45"]
[BlackClock "0:01:33"]

1. e4 {[%clk 0:02:54]}  e6 {[%clk 0:02:59]} 2. d4 {[%clk 0:02:53]}  d5 {[%clk 0:02:59]} 3. Nd2 {[%clk 0:02:54]}  h6 {[%clk 0:02:59]} 4. Ngf3 {[%clk 0:02:54]}  Nf6 {[%clk 0:02:59]} 5. e5 {[%clk 0:02:54]}  Nfd7 {[%clk 0:02:59]} 6. Bd3 {[%clk 0:02:55]}  c5 {[%clk 0:03:00]} 7. c3 {[%clk 0:02:56]}  Nc6 {[%clk 0:03:01]} 8. O-O {[%clk 0:02:55]}  g5 {[%clk 0:03:01]} 9. dxc5 {[%clk 0:02:56]}  Bg7 {[%clk 0:02:59]} 10. Re1 {[%clk 0:02:55]}  Nxc5 {[%clk 0:02:58]} 11. Bb5 {[%clk 0:02:55]}  Nd7 {[%clk 0:02:57]} 12. Nb3 {[%clk 0:02:53]}  O-O {[%clk 0:02:57]} 13. Bxc6 {[%clk 0:02:51]}  bxc6 {[%clk 0:02:58]} 14. Be3 {[%clk 0:02:51]}  Qc7 {[%clk 0:02:56]} 15. Qd2 {[%clk 0:02:44]}  c5 {[%clk 0:02:54]} 16. h4 {[%clk 0:02:43]}  g4 {[%clk 0:02:53]} 17. Nh2 {[%clk 0:02:39]}  h5 {[%clk 0:02:53]} 18. f3 {[%clk 0:02:37]}  Nxe5 {[%clk 0:02:49]} 19. Bh6 {[%clk 0:02:34]}  gxf3 {[%clk 0:02:37]} 20. Bxg7 {[%clk 0:02:34]}  Kxg7 {[%clk 0:02:31]} 21. Qg5+ {[%clk 0:02:30]}  Ng6 {[%clk 0:02:31]} 22. Nxf3 {[%clk 0:02:29]}  c4 {[%clk 0:02:19]} 23. Nbd4 {[%clk 0:02:27]}  Qf4 {[%clk 0:02:19]} 24. Qxh5 {[%clk 0:02:16]}  Rh8 {[%clk 0:02:19]} 25. Qg5 {[%clk 0:02:16]}  Rxh4 {[%clk 0:02:19]} 26. Qxf4 {[%clk 0:02:12]}  Rxf4 {[%clk 0:02:19]} 27. b3 {[%clk 0:02:13]}  Ba6 {[%clk 0:02:08]} 28. b4 {[%clk 0:02:11]}  Re4 {[%clk 0:02:02]} 29. a4 {[%clk 0:02:09]}  Bb7 {[%clk 0:01:59]} 30. Ng5 {[%clk 0:02:03]}  Rxe1+ {[%clk 0:01:51]} 31. Rxe1 {[%clk 0:02:04]}  Kf6 {[%clk 0:01:52]} 32. Ngxe6 {[%clk 0:01:55]}  fxe6 {[%clk 0:01:51]} 33. Rxe6+ {[%clk 0:01:56]}  Kf7 {[%clk 0:01:52]} 34. Rd6 {[%clk 0:01:57]}  Re8 {[%clk 0:01:51]} 35. Nb5 {[%clk 0:01:48]}  a6 {[%clk 0:01:31]} 36. Rd7+ {[%clk 0:01:48]}  Ke6 {[%clk 0:01:31]} 37. Rxb7 {[%clk 0:01:48]}  axb5 {[%clk 0:01:32]} 38. Rb6+ {[%clk 0:01:47]}  Kf5 {[%clk 0:01:31]} 39. Rxb5 {[%clk 0:01:47]}  Nf4 {[%clk 0:01:32]} 40. a5 {[%clk 0:01:45]}  Ne2+ {[%clk 0:01:31]} 41. Kf2 {[%clk 0:01:46]}  Nxc3 {[%clk 0:01:32]} 42. Rc5 {[%clk 0:01:45]}  Ne4+ {[%clk 0:01:32]} 43. Kf3 {[%clk 0:01:45]}  Nxc5 {[%clk 0:01:33]} 44. bxc5 {[%clk 0:01:45]}  c3 {[%clk 0:01:33]} 0-1


[Site "https://www.chess.com"]

[Event "Titled Tuesday Blitz May 16 Late 2023"]
[White "Pakleza, Zbigniew"]
[Black "Denishev, Marat"]
[WhiteFideId "1119290"]
[BlackFideId "24131563"]
[WhiteElo "2410"]
[BlackElo "2311"]
[Result "1-0"]
[Round "02"]
[TimeControl "180+2"]
[Date "2023.05.16"]
[WhiteClock "0:00:40"]
[BlackClock "0:00:00"]

1. d4 {[%clk 0:03:00]}  Nf6 {[%clk 0:02:58]} 2. Nf3 {[%clk 0:03:00]}  e6 {[%clk 0:02:55]} 3. Bf4 {[%clk 0:03:00]}  d5 {[%clk 0:02:52]} 4. e3 {[%clk 0:02:59]}  Bd6 {[%clk 0:02:51]} 5. Bg3 {[%clk 0:02:59]}  O-O {[%clk 0:02:51]} 6. Nbd2 {[%clk 0:02:59]}  c5 {[%clk 0:02:50]} 7. c3 {[%clk 0:02:59]}  Qc7 {[%clk 0:02:50]} 8. Be2 {[%clk 0:02:55]}  Nbd7 {[%clk 0:02:50]} 9. c4 {[%clk 0:02:55]}  cxd4 {[%clk 0:02:48]} 10. Nxd4 {[%clk 0:02:55]}  Bxg3 {[%clk 0:02:42]} 11. hxg3 {[%clk 0:02:56]}  b6 {[%clk 0:02:23]} 12. Rc1 {[%clk 0:02:53]}  Qb7 {[%clk 0:01:48]} 13. cxd5 {[%clk 0:02:33]}  Nxd5 {[%clk 0:01:47]} 14. O-O {[%clk 0:02:22]}  Ne5 {[%clk 0:01:38]} 15. N2f3 {[%clk 0:02:15]}  Ng6 {[%clk 0:01:27]} 16. e4 {[%clk 0:01:53]}  Nf6 {[%clk 0:01:24]} 17. e5 {[%clk 0:01:53]}  Nd5 {[%clk 0:01:23]} 18. Bd3 {[%clk 0:01:39]}  Bd7 {[%clk 0:01:21]} 19. Bxg6 {[%clk 0:01:23]}  hxg6 {[%clk 0:01:21]} 20. Ng5 {[%clk 0:01:23]}  Rfe8 {[%clk 0:01:00]} 21. Qg4 {[%clk 0:01:13]}  f6 {[%clk 0:00:18]} 22. exf6 {[%clk 0:01:13]}  Nxf6 {[%clk 0:00:14]} 23. Qh4 {[%clk 0:01:14]}  Nh5 {[%clk 0:00:14]} 24. Rfe1 {[%clk 0:01:00]}  e5 {[%clk 0:00:14]} 25. Ndf3 {[%clk 0:01:00]}  Rac8 {[%clk 0:00:10]} 26. Rcd1 {[%clk 0:00:53]}  Bc6 {[%clk 0:00:07]} 27. Nxe5 {[%clk 0:00:47]}  Rcd8 {[%clk 0:00:03]} 28. Nxg6 {[%clk 0:00:42]}  Rxd1 {[%clk 0:00:00]} 29. Rxd1 {[%clk 0:00:40]} 1-0


[Site "https://www.chess.com"]

[Event "Titled Tuesday Blitz May 16 Late 2023"]
[White "Krzyzanowski, Marcin"]
[Black "Moore, Nicholas"]
[WhiteFideId "1132199"]
[BlackFideId "4303709"]
[WhiteElo "2471"]
[BlackElo "2575"]
[Result "1-0"]
[Round "02"]
[TimeControl "180+2"]
[Date "2023.05.16"]
[WhiteClock "0:00:40"]
[BlackClock "0:00:06"]

1. Nf3 {[%clk 0:03:00]}  d5 {[%clk 0:02:59]} 2. c4 {[%clk 0:02:59]}  c6 {[%clk 0:02:59]} 3. g3 {[%clk 0:02:58]}  Nf6 {[%clk 0:02:59]} 4. Bg2 {[%clk 0:02:58]}  dxc4 {[%clk 0:02:58]} 5. a4 {[%clk 0:02:53]}  a5 {[%clk 0:02:58]} 6. O-O {[%clk 0:02:52]}  g6 {[%clk 0:02:53]} 7. Na3 {[%clk 0:02:52]}  Bg7 {[%clk 0:02:49]} 8. Nxc4 {[%clk 0:02:52]}  O-O {[%clk 0:02:50]} 9. d3 {[%clk 0:02:52]}  Na6 {[%clk 0:02:49]} 10. Be3 {[%clk 0:02:36]}  Nd5 {[%clk 0:02:47]} 11. Bd4 {[%clk 0:02:33]}  Bxd4 {[%clk 0:02:40]} 12. Nxd4 {[%clk 0:02:34]}  Nf6 {[%clk 0:02:39]} 13. Nc2 {[%clk 0:02:32]}  Be6 {[%clk 0:02:38]} 14. Ne5 {[%clk 0:02:23]}  Qd6 {[%clk 0:02:33]} 15. Nf3 {[%clk 0:02:13]}  Rfd8 {[%clk 0:02:15]} 16. Qd2 {[%clk 0:02:06]}  Nc5 {[%clk 0:02:12]} 17. Ra3 {[%clk 0:02:05]}  Kg7 {[%clk 0:02:06]} 18. Ncd4 {[%clk 0:01:48]}  Bg4 {[%clk 0:01:53]} 19. Rc1 {[%clk 0:01:45]}  e5 {[%clk 0:01:43]} 20. Nb3 {[%clk 0:01:34]}  Nxb3 {[%clk 0:01:33]} 21. Rxb3 {[%clk 0:01:35]}  Rd7 {[%clk 0:01:24]} 22. Qc3 {[%clk 0:01:30]}  Bxf3 {[%clk 0:01:15]} 23. Bxf3 {[%clk 0:01:31]}  Nd5 {[%clk 0:01:08]} 24. Qc5 {[%clk 0:01:30]}  Qxc5 {[%clk 0:00:34]} 25. Rxc5 {[%clk 0:01:31]}  f6 {[%clk 0:00:22]} 26. Bxd5 {[%clk 0:01:24]}  cxd5 {[%clk 0:00:23]} 27. Rbb5 {[%clk 0:01:24]}  d4 {[%clk 0:00:21]} 28. Rxa5 {[%clk 0:01:20]}  Rxa5 {[%clk 0:00:18]} 29. Rxa5 {[%clk 0:01:21]}  Rc7 {[%clk 0:00:18]} 30. Rb5 {[%clk 0:01:21]}  Kf7 {[%clk 0:00:18]} 31. Kg2 {[%clk 0:01:21]}  Ke6 {[%clk 0:00:18]} 32. f4 {[%clk 0:01:13]}  exf4 {[%clk 0:00:10]} 33. gxf4 {[%clk 0:01:14]}  Kd7 {[%clk 0:00:07]} 34. Rb6 {[%clk 0:01:08]}  f5 {[%clk 0:00:07]} 35. Kf3 {[%clk 0:01:07]}  Kc8 {[%clk 0:00:07]} 36. h4 {[%clk 0:00:55]}  Re7 {[%clk 0:00:07]} 37. h5 {[%clk 0:00:41]}  gxh5 {[%clk 0:00:07]} 38. Rh6 {[%clk 0:00:42]}  Re3+ {[%clk 0:00:07]} 39. Kf2 {[%clk 0:00:43]}  Re7 {[%clk 0:00:06]} 40. Rxh5 {[%clk 0:00:42]}  Kc7 {[%clk 0:00:06]} 41. Rxf5 {[%clk 0:00:42]}  Kb6 {[%clk 0:00:06]} 42. Rd5 {[%clk 0:00:40]}  Rf7 {[%clk 0:00:07]} 43. Rxd4 {[%clk 0:00:40]}  Kc5 {[%clk 0:00:08]} 44. Rc4+ {[%clk 0:00:40]}  Kd5 {[%clk 0:00:08]} 45. e4+ {[%clk 0:00:40]}  Kd6 {[%clk 0:00:09]} 46. f5 {[%clk 0:00:40]}  Ke5 {[%clk 0:00:09]} 47. Ke3 {[%clk 0:00:40]}  Rd7 {[%clk 0:00:08]} 48. d4+ {[%clk 0:00:40]}  Kf6 {[%clk 0:00:09]} 49. Kf4 {[%clk 0:00:39]}  Rd8 {[%clk 0:00:06]} 50. e5+ {[%clk 0:00:40]} 1-0


[Site "https://www.chess.com"]